Cogmind - Beta 10.2 @@@ ROGUE MODE // 2021.09.26 @ 17:32:30 Player: Finestep Result: Destroyed by G-67 Veteran with Plasma Rifle Performance ------------- Evolutions (4) 2000 Regions Visited (12) 2400 Robots Destroyed (109) 545 Value Destroyed (3800) 3800 Prototype IDs (37) 740 Alien Tech Used (0) 0 Bonus (1968) 1968 TOTAL SCORE: 11453 Bonus ------- High Alert Combat Kills 237 Follower Combat Kills 447 Entered Garrisons 200 Used RIF Installer 500 Aligned with FarCom 300 Met Data Miner 300 Friendly Fire -16 Cogmind --------- Core Integrity 0/850 Matter 253/300 Energy 67/100 System Corruption 2% Temperature Cool (9) Movement Core (50) Location -5/Proximity Caves Parts ------- > --- POWER (2) -------- (None) > --- PROPULSION (5) --- (None) > --- UTILITY (6) ------ Advanced Terrain Scan Processor 0b10 Decoder Chip [Skirmisher] Improved Melee Analysis Suite Improved Hacking Suite Advanced System Shield > --- WEAPON (2) ------- Heavy Pick > --- INVENTORY (4) ---- Compact Battery (300) Neutron Cannon Coil Gun Peak State ------------ > --- POWER ------------ Light Fission Core Antimatter Reactor > --- PROPULSION ------- Carbon-fiber Leg Carbon-fiber Leg Enhanced Flexi-carbon Leg Improved VTOL Module Improved VTOL Module > --- UTILITY ---------- Large Storage Unit Improved Signal Interpreter Improved Melee Analysis Suite Improved Propulsion Shielding Improved Hacking Suite Relay Coupler [NC] > --- WEAPON ----------- Long-range Missile Launcher Heavy Pick > --- INVENTORY -------- Medium Treads Improved VTOL Module Compact Battery Long-range Sensor Array Advanced Terrain Scanner Advanced Terrain Scan Processor Improved Transmission Jammer Advanced System Shield Neutron Cannon Remote Datajack [Rating: 63] Favorites ----------- Power Light Ion Engine Engine Light Ion Engine Power Core Light Fission Core Reactor Antimatter Reactor Propulsion Light Treads Treads Light Treads Leg Carbon-fiber Leg Wheel Compact Wheel Flight Unit Improved VTOL Module Utility Large Storage Unit Device Long-range Sensor Array Storage Large Storage Unit Processor Improved Signal Interpreter Hackware Hacking Suite Protection Medium Armor Plating Weapon Autogun Energy Gun Beamcaster Energy Cannon Neutron Cannon Ballistic Gun Autogun Launcher Long-range Missile Launcher Special Weapon Remote Datajack Impact Weapon Makeshift Hammer Slashing Weapon Falx Piercing Weapon Heavy Pick Build | -11 -10 -10 -10 -9 -8 -8 -7 -6 -6 -6 -6 -5 ------- Run | Scr Mat Min Exi Min Mat Gar Fac Fac Low Low Dat Pro Slots Evolved 8 | . . . . . 4 . 2 2 . . . . Power 1 | . . . . . . . . 1 . . . . Propulsion 3 | . . . . . 1 . 2 . . . . . Utility 4 | . . . . . 3 . . 1 . . . . Weapon . | . . . . . . . . . . . . . Parts Attached 131 | 8 18 . . 1 21 18 24 7 16 2 5 11 Power 13 | 1 2 . . . 3 1 3 1 1 . 1 . Engine 8 | 1 2 . . . 3 . 2 . . . . . Core 4 | . . . . . . 1 1 1 1 . . . Reactor 1 | . . . . . . . . . . . 1 . Propulsion 23 | 2 2 . . . 4 2 8 . . 2 1 2 Treads 9 | 1 2 . . . 3 2 . . . . . 1 Leg 4 | . . . . . . . . . . 2 1 1 Wheel 1 | 1 . . . . . . . . . . . . Hover . | . . . . . . . . . . . . . Flight 9 | . . . . . 1 . 8 . . . . . Utility 43 | 2 3 . . . 6 5 8 3 9 . 2 5 Device 10 | . . . . . 1 . 3 . 4 . . 2 Storage 6 | 2 3 . . . 1 . . . . . . . Processor 5 | . . . . . 1 . 1 . . . 1 2 Hackware 7 | . . . . . . 2 2 2 . . . 1 Protection 15 | . . . . . 3 3 2 1 5 . 1 . Artifact . | . . . . . . . . . . . . . Weapon 52 | 3 11 . . 1 8 10 5 3 6 . 1 4 Energy Gun 6 | 2 2 . . . 2 . . . . . . . Energy Cannon 1 | . . . . . . . . . . . . 1 Ballistic Gun 19 | 1 8 . . 1 3 6 . . . . . . Ballistic Cannon . | . . . . . . . . . . . . . Launcher 8 | . . . . . 1 2 . . 3 . 1 1 Special Weapon 8 | . 1 . . . . 2 3 1 1 . . . Impact Weapon 3 | . . . . . 2 . 1 . . . . . Slashing Weapon 2 | . . . . . . . 1 1 . . . . Piercing Weapon 5 | . . . . . . . . 1 2 . . 2 Special Melee Weapon . | . . . . . . . . . . . . . Unidentified Prototypes 3 | . . . . . 1 . 1 . . . 1 . Parts Lost 29 | . 3 . . . 3 6 . . 3 . . 14 Power 6 | . 1 . . . 1 1 . . 1 . . 2 Propulsion 9 | . . . . . . 1 . . 2 . . 6 Utility 7 | . . . . . . 2 . . . . . 5 Weapon 7 | . 2 . . . 2 2 . . . . . 1 Highest Loss Streak 6 | . 2 . . . 1 2 . . 2 . . 6 Average Slot Usage (%) 93 | . 99 100 100 100 96 97 94 85 80 82 87 50 Engine 8 | . 13 14 14 14 8 8 2 . . . . . Core 1 | . . . . . . . 4 5 6 6 6 . Treads 17 | . 23 28 28 28 26 26 . . . . . 1 Leg 1 | . . . . . . . . . . 9 13 3 Flight 9 | . . . . . . . 37 33 27 20 19 . Device 2 | . . . . . 6 . 6 6 4 6 3 2 Storage 19 | . 27 28 28 28 27 27 7 6 6 6 6 2 Processor 3 | . . . . . . 4 6 6 6 6 8 14 Hackware 5 | . . . . . . . 8 15 20 20 17 12 Protection 3 | . . . . . 9 11 6 3 1 . 2 . Energy Gun 1 | . 5 . . . 5 . . . . . . . Ballistic Gun 14 | . 22 28 28 28 12 17 3 . . . . . Piercing Weapon 1 | . . . . . . . . . 4 6 6 5 Naked Turns . | . . . . . . . . . . . . . Heaviest Build 93 | 15 57 55 55 55 93 90 34 30 33 28 52 52 Greatest Support 60 | 16 40 40 40 40 60 60 30 30 30 30 58 58 Greatest Overweight (x) 3 | . 3 1 1 1 1 1 1 . 1 1 1 1 Average Overweight (x) . | . 1 1 1 1 1 1 . . . . . . Largest Inventory Capacity 24 | 8 18 18 18 18 24 24 24 10 10 10 10 10 Average Capacity 16 | 6 16 18 18 18 24 24 10 10 10 10 10 6 Most Carried 24 | 5 18 18 18 18 24 24 24 10 10 10 10 10 Average Carried 15 | 3 15 17 17 17 22 23 9 9 9 9 9 6 Final Capacity 24 | 8 18 18 18 18 24 24 10 10 10 10 10 4 Final Carried 24 | 5 18 18 18 18 24 23 10 10 9 10 10 3 Class Distribution -------------------- 48% | Mutant 19% | Hauler-Mutant 13% | Hacker-Mutant 9% | Sprinter 4% | Hacker-Sprinter 3% | Scavenger-Mutant Dominant Class ---------------- Mutant | -10/Materials Mutant | -10/Mines Mutant | -10/Exiles Mutant | -9/Mines Hauler-Mutant | -8/Materials Hauler-Mutant | -8/Garrison Sprinter | -7/Factory Sprinter | -6/Factory Hacker-Mutant | -6/Lower Caves Hacker-Mutant | -6/Lower Caves Hacker-Mutant | -6/Data Miner Hacker-Mutant | -5/Proximity Caves Resources | -11 -10 -10 -10 -9 -8 -8 -7 -6 -6 -6 -6 -5 ----------- Run | Scr Mat Min Exi Min Mat Gar Fac Fac Low Low Dat Pro Matter Collected 3024 | 304 625 31 . 80 403 562 435 86 330 20 50 98 Remotely . | . . . . . . . . . . . . . Salvage Created 3856 | 138 837 72 . 12 914 396 432 105 469 157 . 324 Parts 212 | 8 66 3 . 3 58 29 17 4 14 6 . 4 Haulers Intercepted 6 | . 2 . . . 2 . 1 1 . . . . Recyclers Shooed 4 | . 1 1 . . 1 . 1 . . . . . Parts Field Recycled . | . . . . . . . . . . . . . Retrieved Matter . | . . . . . . . . . . . . . Parts Self-Destructed 14 | . . . . . . . . . 11 . . 3 Prevented 3 | . . . . . . . . . . 2 . 1 Kills | -11 -10 -10 -10 -9 -8 -8 -7 -6 -6 -6 -6 -5 ------- Run | Scr Mat Min Exi Min Mat Gar Fac Fac Low Low Dat Pro Combat Hostiles Destroyed 84 | . 20 2 . . 19 15 5 . 12 . . 11 Melee 5 | . . . . . . . 2 . 1 . . 2 Guns 47 | . 17 2 . . 19 9 . . . . . . AOE 32 | . 3 . . . . 6 3 . 11 . . 9 Classes Destroyed 15 | 2 6 . . 1 1 2 1 . 1 1 . . Worker 3 | . 2 . . . . . . 1 . . . . Builder 2 | . . . . 1 1 . . . . . . . Tunneler 3 | 2 . . . 1 . . . . . . . . Hauler 6 | . 2 . . . 2 . 1 1 . . . . Recycler 3 | 1 1 . . . . . 1 . . . . . Operator 3 | . 1 . . . 1 . 1 . . . . . Watcher 5 | . 3 . . . 2 . . . . . . . Swarmer 31 | . 9 . . . 7 8 . . 5 . . 2 Grunt 40 | . 11 2 . . 11 4 2 . 6 . . 4 Brawler 2 | . . . . . . . . . 1 . . 1 Duelist 4 | . . . . . . . 1 . . . . 3 Sentry 4 | . . . . . . 2 1 . . . . 1 Hunter 1 | . . . . . . 1 . . . . . . Programmer 2 | . . . . . 1 . 1 . . . . . Packrat 3 | . . . . . . . . . 3 . . . Samaritan 3 | . . . . . . . . . . 3 . . Best Kill Streak 9 | 3 6 1 . 1 7 6 3 1 5 . . 9 Combat Bots Only 9 | . 6 1 . . 7 6 3 . 5 . . 9 Max Kills in Single Turn 5 | 1 3 1 . 1 2 5 3 1 4 1 . 3 Gunslinging . | . . . . . . . . . . . . . Exploded 5 | . 3 . . . . 5 3 . 4 . . 3 Melee 1 | . . . . . . . 1 . 1 . . 1 Uniques/NPCs Destroyed . | . . . . . . . . . . . . . Combat | -11 -10 -10 -10 -9 -8 -8 -7 -6 -6 -6 -6 -5 -------- Run | Scr Mat Min Exi Min Mat Gar Fac Fac Low Low Dat Pro Damage Taken 5090 | . 653 97 15 109 692 1022 251 25 674 . . 1552 Core 1270 | . 135 11 15 19 77 86 72 . 201 . . 654 Absorbed by Shields 17 | . . . . . . 17 . . . . . . Core Remaining (%) 71 | 100 . . . 28 . 70 89 . . . . . Volleys Fired 252 | 8 75 5 9 5 68 49 12 1 12 . . 8 Largest 2 | 2 2 2 2 2 2 2 2 1 1 . . 1 Hottest 150 | 60 100 43 43 43 150 51 51 30 43 . . 90 Shots Fired 465 | 16 149 10 18 10 132 87 22 1 12 . . 8 Gun 429 | 16 148 10 18 10 130 77 20 . . . . . Cannon 1 | . . . . . . . . . . . . 1 Launcher 22 | . . . . . 2 3 . . 10 . . 7 Special 13 | . 1 . . . . 7 2 1 2 . . . Kinetic 343 | 8 116 10 18 10 84 77 20 . . . . . Thermal 58 | . 11 . . . 46 . . . . . . 1 Explosive 22 | . . . . . 2 3 . . 10 . . 7 Electromagnetic 30 | 8 22 . . . . . . . . . . . Robot Hit Streak 26 | 15 8 4 . 6 11 26 6 2 5 . . 7 Robot Miss Streak 5 | . 5 3 . 3 3 4 5 . 1 . . 1 Penetration Max . | . . . . . . . . . . . . . Secondary Targets 7 | . 3 . . . 1 3 . . . . . . Max Gunslinging Chain 1 | . 1 . . . 1 1 . . . . . . Shots Hit Robots 340 | 15 85 4 . 7 86 62 34 6 18 6 1 16 Core Hits 213 | 4 46 2 . 2 41 33 23 2 27 3 . 30 Critical Hits 10 | . 2 . . 1 2 1 1 1 . 1 . 1 Critical Kills 4 | . . . . . 2 1 . 1 . . . . Critical Parts Destroyed 5 | . 2 . . 1 . . 1 . . 1 . . Melee Attacks 117 | . . . . . 1 . 39 17 22 6 6 26 Impact 24 | . . . . . 1 . 23 . . . . . Slashing 31 | . . . . . . . 16 15 . . . . Piercing 62 | . . . . . . . . 2 22 6 6 26 Sneak Attacks 20 | . . . . . . . 4 3 3 6 1 3 Combat Hostiles 3 | . . . . . . . 3 . . . . . Follow-up Attacks . | . . . . . . . . . . . . . Damage Inflicted 11236 | 167 1005 78 16 96 1419 1466 1596 485 2040 609 91 2168 Guns 3809 | 167 906 51 16 93 1419 924 233 . . . . . Cannons . | . . . . . . . . . . . . . Explosions 4134 | . 99 . . . . 542 469 . 1478 . . 1546 Melee 3263 | . . . . . . . 894 485 562 609 91 622 Ramming 30 | . . 27 . 3 . . . . . . . . Kinetic 2919 | 91 730 51 16 93 781 924 233 . . . . . Thermal 857 | . 123 . . . 638 . 96 . . . . . Explosive 3566 | . . . . . . 542 . . 1478 . . 1546 Electromagnetic 601 | 76 152 . . . . . 373 . . . . . Impact 453 | . . . . . . . 453 . . . . . Slashing 887 | . . . . . . . 441 446 . . . . Piercing 1923 | . . . . . . . . 39 562 609 91 622 Highest Corruption 4 | . . . . . 1 1 4 . . . . 2 Average Corruption 1 | . . . . . 1 1 3 . . . . 2 Corruption Purged . | . . . . . . . . . . . . . Effects 11 | . . . . . . 2 7 . . . . 2 Message Errors 2 | . . . . . . 1 . . . . . 1 Matter Fused 4 | . . . . . . . 4 . . . . . Energy Discharges 3 | . . . . . . . 2 . . . . 1 Data Loss (minor) 1 | . . . . . . 1 . . . . . . Targeting Errors 1 | . . . . . . . 1 . . . . . Overload Shots . | . . . . . . . . . . . . . Overflow Damage 811 | . . . . . . 20 171 220 196 86 . 118 Projectiles . | . . . . . . . . . . . . . Explosions 210 | . . . . . . 20 19 . 98 . . 73 Melee 601 | . . . . . . . 152 220 98 86 . 45 Knockbacks 2 | . . . . . . . 2 . . . . . Impact 2 | . . . . . . . 2 . . . . . Kinetic . | . . . . . . . . . . . . . Secondary . | . . . . . . . . . . . . . Self-Inflicted Damage 210 | . 87 . . . . . . . . . . 123 Shots 6 | . 3 . . . . . . . . . . 3 Rammed 2 | . . 2 . . . . . . . . . . Targets Rammed 3 | . . 2 . 1 . . . . . . . . Kicked . | . . . . . . . . . . . . . Crushed 1 | . . . . 1 . . . . . . . . Highest Temperature 301 | . 90 17 4 19 301 49 21 6 4 . . 25 Average Temperature 40 | . 26 5 1 7 98 15 7 2 3 . . 9 Received Heat Transfer 1251 | . 168 54 9 57 252 303 18 6 105 . . 279 Siege Activations . | . . . . . . . . . . . . . Robots Corrupted . | . . . . . . . . . . . . . Combat Hostiles . | . . . . . . . . . . . . . Parts Fried 8 | 1 1 . . . . . 6 . . . . . Impact Corruptions 7 | . . . . . . . 7 . . . . . Robots Melted . | . . . . . . . . . . . . . Combat Hostiles . | . . . . . . . . . . . . . Parts Melted 2 | . 1 . . . . . 1 . . . . . Heat Transferred 1384 | . 174 . . . 1110 . 100 . . . . . Parts Sabotaged . | . . . . . . . . . . . . . Parts Stolen . | . . . . . . . . . . . . . Parts Stripped . | . . . . . . . . . . . . . Power Chain Reactions 3 | . 2 . . . . . 1 . . . . . Missiles Intercepted . | . . . . . . . . . . . . . Alert | -11 -10 -10 -10 -9 -8 -8 -7 -6 -6 -6 -6 -5 ------- Run | Scr Mat Min Exi Min Mat Gar Fac Fac Low Low Dat Pro Peak Influence 879 | 15 443 98 . 224 392 866 879 578 . . . . Initial 454 | . 9 22 . . 87 254 454 367 . . . . Average 300 | 5 219 15 . 38 210 641 620 459 . . . . Maximum Alert Level 3 | . 2 . . 1 1 3 3 2 . . . . Low Security (%) 41 | 100 36 100 . 86 49 . . . . . . . Level 1 26 | . 63 . . 13 50 8 . 39 . . . . Level 2 22 | . . . . . . 50 71 60 . . . . Level 3 10 | . . . . . . 41 28 . . . . . Level 4 . | . . . . . . . . . . . . . Level 5 . | . . . . . . . . . . . . . High Security . | . . . . . . . . . . . . . Max Security . | . . . . . . . . . . . . . Squads Dispatched 29 | . 6 . . 1 7 . 10 4 . . . 1 Investigation 18 | . 5 . . . 3 . 6 4 . . . . Extermination 2 | . . . . . . . 2 . . . . . Reinforcement 2 | . 1 . . . 1 . . . . . . . Assault 4 | . . . . 1 . . 2 . . . . 1 Garrison 3 | . . . . . 3 . . . . . . . Intercept . | . . . . . . . . . . . . . Construction Impeded 1 | . . . . . 1 . . . . . . . Haulers Reinforced . | . . . . . . . . . . . . . Stealth | -11 -10 -10 -10 -9 -8 -8 -7 -6 -6 -6 -6 -5 --------- Run | Scr Mat Min Exi Min Mat Gar Fac Fac Low Low Dat Pro Distress Signals 3 | . . . . . 1 . . 2 . . . . Communications Jammed . | . . . . . . . . . . . . . Distress Signals . | . . . . . . . . . . . . . Times Spotted 181 | . 35 2 3 9 36 23 18 6 23 . . 26 Peak Tracking Total 9 | . 6 2 9 4 7 5 8 3 9 . . 9 Tactical Retreats 25 | . 1 . . . 3 2 4 . 9 . . 6 Traps | -11 -10 -10 -10 -9 -8 -8 -7 -6 -6 -6 -6 -5 ------- Run | Scr Mat Min Exi Min Mat Gar Fac Fac Low Low Dat Pro Traps Triggered 12 | . 3 . . . 1 5 1 2 . . . . Indirectly . | . . . . . . . . . . . . . Trap Hack Attempts . | . . . . . . . . . . . . . Triggered . | . . . . . . . . . . . . . Disarmed . | . . . . . . . . . . . . . Reprogrammed . | . . . . . . . . . . . . . Reused 3 | . . . . . . . . . . . 3 . Traps Extracted . | . . . . . . . . . . . . . Installed 8 | . . . . . . . . . . . 8 . Triggered 2 | . . . . . . . . . . 1 . 1 Exploded 1 | . . . . . 1 . . . . . . . Machines | -11 -10 -10 -10 -9 -8 -8 -7 -6 -6 -6 -6 -5 ---------- Run | Scr Mat Min Exi Min Mat Gar Fac Fac Low Low Dat Pro Machines Disabled 16 | . 1 . 3 . 1 3 5 . . . 1 2 Max in Single Turn 3 | . 1 . 1 . . 1 3 . . . 1 2 Garrison Access 1 | . . . . . . . . 1 . . . . Garrison Relay 3 | . . . . . . 3 . . . . . . Machines Sabotaged . | . . . . . . . . . . . . . Garrisons Compromised . | . . . . . . . . . . . . . Overloaded Fab Kills . | . . . . . . . . . . . . . Fab Network Shutdowns . | . . . . . . . . . . . . . Hacking | -11 -10 -10 -10 -9 -8 -8 -7 -6 -6 -6 -6 -5 --------- Run | Scr Mat Min Exi Min Mat Gar Fac Fac Low Low Dat Pro Machines Accessed 53 | . 10 . 2 2 4 . 16 13 . 2 4 . Terminals 22 | . 7 . . 1 . . 7 7 . . . . Fabricators 5 | . . . . . . . 3 2 . . . . Repair Stations 6 | . 1 . . . 1 . 2 2 . . . . Recycling Units 7 | . 2 . . . 1 . 3 1 . . . . Scanalyzers 1 | . . . . . 1 . . . . . . . Garrison Access 3 | . . . . . 1 . 1 1 . . . . Total Hacks 160 | . 37 . 5 6 14 . 33 30 . 8 27 . Successful 114 | . 21 . 5 2 12 . 21 18 . 8 27 . Failed 46 | . 16 . . 4 2 . 12 12 . . . . Catastrophic 10 | . 2 . . . . . 4 4 . . . . Database Lockouts . | . . . . . . . . . . . . . Manual 62 | . 21 . 1 5 3 . 17 15 . . . . Terminals 61 | . 26 . . 5 . . 15 15 . . . . Fabricators 12 | . . . . . . . 7 5 . . . . Repair Stations 17 | . 5 . . . 4 . 3 5 . . . . Recycling Units 18 | . 6 . . . 3 . 7 2 . . . . Scanalyzers 4 | . . . . . 4 . . . . . . . Garrison Access 7 | . . . . . 3 . 1 3 . . . . Terminal Hacks 56 | . 8 . 5 2 . . 3 3 . 8 27 . Record 22 | . . . 4 . . . . . . 7 11 . Part Schematic 9 | . 2 . . . . . 1 1 . . 5 . Robot Schematic 9 | . 1 . . . . . . . . . 8 . Robot Analysis 2 | . 1 . . 1 . . . . . . . . Prototype ID Bank 3 | . . . . . . . . . . . 3 . Open Door 2 | . . . . 1 . . . . . 1 . . Level Access Points 1 | . . . . . . . 1 . . . . . Terminal Index 1 | . . . . . . . . 1 . . . . Unreport Threat 1 | . 1 . . . . . . . . . . . Locate Traps 2 | . 1 . . . . . . 1 . . . . Hauler Manifests 1 | . 1 . . . . . . . . . . . Zone Layout 2 | . 1 . . . . . 1 . . . . . EX-Prototype ID Bank 1 | . . . 1 . . . . . . . . . Fabricator Hacks 8 | . . . . . . . 5 3 . . . . Network Status 1 | . . . . . . . . 1 . . . . Load Schematic 4 | . . . . . . . 3 1 . . . . Build 3 | . . . . . . . 2 1 . . . . Repair Station Hacks 12 | . 4 . . . 3 . 3 2 . . . . Scan Component 6 | . 2 . . . 2 . 1 1 . . . . Repair 5 | . 2 . . . 1 . 1 1 . . . . Refit 1 | . . . . . . . 1 . . . . . Recycling Unit Hacks 7 | . 2 . . . 2 . 2 1 . . . . Retrieve Matter 1 | . . . . . 1 . . . . . . . Retrieve Components 6 | . 2 . . . 1 . 2 1 . . . . Scanalyzer 4 | . . . . . 4 . . . . . . . Insert Component 2 | . . . . . 2 . . . . . . . Analyze 2 | . . . . . 2 . . . . . . . Garrison Access Hacks 2 | . . . . . 1 . . 1 . . . . Unlock Access 1 | . . . . . 1 . . . . . . . Seal Access 1 | . . . . . . . . 1 . . . . Unauthorized Hacks 25 | . 7 . . . 2 . 8 8 . . . . Terminals 15 | . 6 . . . . . 4 5 . . . . Track 5 | . 3 . . . . . . 2 . . . . Assimilate 3 | . . . . . . . 2 1 . . . . Botnet 4 | . 3 . . . . . . 1 . . . . Detonate 1 | . . . . . . . 1 . . . . . Operators 2 | . . . . . . . 1 1 . . . . Fabricators 1 | . . . . . . . . 1 . . . . Haulers 1 | . . . . . . . . 1 . . . . Repair Stations . | . . . . . . . . . . . . . Recycling Units 6 | . 1 . . . 1 . 3 1 . . . . Tunnel 6 | . 1 . . . 1 . 3 1 . . . . Scanalyzers . | . . . . . . . . . . . . . Garrison Access 3 | . . . . . 1 . 1 1 . . . . Restock 1 | . . . . . 1 . . . . . . . Reprogram 2 | . . . . . . . 1 1 . . . . Data Cores Recovered . | . . . . . . . . . . . . . Used . | . . . . . . . . . . . . . Hacking Detections 36 | . 9 . . 1 3 . 12 11 . . . . Full Trace Events 9 | . 1 . . 1 3 . 2 2 . . . . Feedback Events . | . . . . . . . . . . . . . Feedback Blocked . | . . . . . . . . . . . . . Robot Schematics Acquired 9 | . 1 . . . . . . . . . 8 . Robots Built . | . . . . . . . . . . . . . Matter . | . . . . . . . . . . . . . Time . | . . . . . . . . . . . . . Total Robot Build Rating . | . . . . . . . . . . . . . Part Schematics Acquired 11 | . 2 . . . 2 . 1 1 . . 5 . Parts Built 4 | . . . . . . . 3 1 . . . . Matter 570 | . . . . . . . 358 212 . . . . Time 184 | . . . . . . . 131 53 . . . . Total Part Build Rating 20 | . . . . . . . 14 6 . . . . Parts Repaired 5 | . 2 . . . 1 . 1 1 . . . . Time 166 | . 52 . . . 26 . 38 50 . . . . Parts Recycled . | . . . . . . . . . . . . . Recycled Matter . | . . . . . . . . . . . . . Retrieved Matter . | . . . . . . . . . . . . . Retrieved Components 21 | . 9 . . . . . 11 1 . . . . Parts Scanalyzed 2 | . . . . . 2 . . . . . . . Part Schematics Acquired 2 | . . . . . 2 . . . . . . . Parts Damaged . | . . . . . . . . . . . . . Bothacking | -11 -10 -10 -10 -9 -8 -8 -7 -6 -6 -6 -6 -5 ------------ Run | Scr Mat Min Exi Min Mat Gar Fac Fac Low Low Dat Pro Used RIF Installer 1 | . . . . . . 1 . . . . . . Robots Hacked 8 | . . . . . . 5 2 . 1 . . . Non-combat 1 | . . . . . . . . . 1 . . . Combat 7 | . . . . . . 5 2 . . . . . Robot Hacks Applied 8 | . . . . . . 5 2 . 1 . . . scatter_targeting 1 | . . . . . . 1 . . . . . . reboot_system 2 | . . . . . . . 2 . . . . . overwrite_iff 1 | . . . . . . 1 . . . . . . formatsys_low 1 | . . . . . . . . . 1 . . . formatsys_high 3 | . . . . . . 3 . . . . . . Relay Couplers Released 16 | . . . . . 3 13 . . . . . . Machine Destruction 13 | . . . . . . 13 . . . . . . Programmers 3 | . . . . . 3 . . . . . . . Attached 4 | . . . . . . 2 1 1 . . . . Robots Rewired . | . . . . . . . . . . . . . Allies Hacked . | . . . . . . . . . . . . . Hacks Repelled . | . . . . . . . . . . . . . Allies | -11 -10 -10 -10 -9 -8 -8 -7 -6 -6 -6 -6 -5 -------- Run | Scr Mat Min Exi Min Mat Gar Fac Fac Low Low Dat Pro Total Allies 16 | . . 2 . 3 . 4 . 4 1 2 . . Largest Group 5 | . . 2 2 5 4 3 3 3 1 3 1 . Highest-Rated Group 112 | . . 32 32 112 96 48 48 87 22 73 22 . Highest-Rated Ally 31 | . . 16 16 31 31 16 16 29 22 31 22 . Total Orders 7 | . . . 1 2 . . 2 . . . 2 . STAY 4 | . . . 1 1 . . 1 . . . 1 . FOLLOW 2 | . . . . 1 . . 1 . . . . . DROP 1 | . . . . . . . . . . . 1 . Ally Attacks 105 | . . 8 2 26 26 8 17 18 . . . . Total Damage 1401 | . . 108 30 393 279 123 164 304 . . . . Kills 21 | . . 1 . 10 4 2 2 2 . . . . Allies Corrupted . | . . . . . . . . . . . . . Allies Melted . | . . . . . . . . . . . . . Intel | -11 -10 -10 -10 -9 -8 -8 -7 -6 -6 -6 -6 -5 ------- Run | Scr Mat Min Exi Min Mat Gar Fac Fac Low Low Dat Pro Robot Analysis Total 2 | . 1 . . 1 . . . . . . . . Derelict Logs Recovered 6 | . . 1 . 2 . . . . . 2 . 1 Drone Launches . | . . . . . . . . . . . . . Drone Recoveries . | . . . . . . . . . . . . . Exploration | -11 -10 -10 -10 -9 -8 -8 -7 -6 -6 -6 -6 -5 ------------- Run | Scr Mat Min Exi Min Mat Gar Fac Fac Low Low Dat Pro Turns Passed 10133 | 76 1537 1135 598 988 997 1224 927 665 710 617 309 350 Spaces Moved 7235 | 37 720 619 319 501 392 588 1383 1006 686 490 211 283 Core 208 | 1 . . . . . . . . . . . 207 Treads 2883 | . 464 619 319 501 392 588 . . . . . . Legs 635 | . . . . . . . . . . 348 211 76 Wheels 292 | 36 256 . . . . . . . . . . . Hover . | . . . . . . . . . . . . . Flight 3217 | . . . . . . . 1383 1006 686 142 . . Fastest Speed 25 | 50 100 180 180 180 180 180 25 25 25 99 120 50 Average Speed 104 | 98 157 180 180 180 180 180 26 25 51 113 120 78 Slowest Speed 180 | 100 180 180 180 180 180 180 103 25 99 120 150 150 Overloaded Moves . | . . . . . . . . . . . . . Propulsion Burnouts . | . . . . . . . . . . . . . Robots Hopped 9 | . . . . . . . 3 5 1 . . . Cave-ins Triggered 1 | . . . . . . . . . . . . 1 Exploration Rate (%) 56 | 3 97 85 60 90 25 82 29 21 59 59 77 50 Regions Visited 12 Branch Regions 7 Pre-discovered Areas 10 | . 1 . 1 1 1 . 3 1 . 1 1 . Known Exits Taken 7 | . . . . 1 1 . 1 1 1 1 1 . Unknown Exits Taken 4 | 1 1 1 1 . . . . . . . . . Scrap Searched 8 | . . 1 . 1 . . . . 2 2 . 2 Spaces Dug 73 | . 1 . . . 11 9 16 7 15 . . 14 Terrain Destroyed 248 | . 10 . . . 22 19 16 7 97 . . 77 Melee 41 | . . . . . 1 . 16 7 3 . . 14 Projectile 2 | . 1 . . . . . . . . . . 1 AOE 205 | . 9 . . . 21 19 . . 94 . . 62 Terrain Rammed . | . . . . . . . . . . . . . Walls Destroyed . | . . . . . . . . . . . . . Machines Disabled . | . . . . . . . . . . . . . Actions | -11 -10 -10 -10 -9 -8 -8 -7 -6 -6 -6 -6 -5 --------- Run | Scr Mat Min Exi Min Mat Gar Fac Fac Low Low Dat Pro Total 9232 | 56 991 632 329 582 570 680 1887 1382 977 538 258 350 Wait 1234 | . 129 3 . 67 56 6 357 325 238 35 4 14 Move 7203 | 36 719 618 318 500 391 586 1376 995 683 489 210 282 Hop 9 | . . . . . . . 3 5 1 . . . Pick Up 128 | 4 33 2 1 4 20 9 28 6 2 4 13 2 Fast Attach 30 | 7 4 . . . 5 1 4 3 . 1 2 3 Attach 53 | . 4 . . 1 10 7 16 3 3 1 1 7 Detach 11 | . . . . . 2 . 3 1 1 . . 4 Swap 48 | 1 10 . . . 6 10 4 1 13 . 2 1 Drop 108 | . 17 2 1 4 11 3 45 7 2 2 12 2 Fire 252 | 8 75 5 9 5 68 49 12 1 12 . . 8 Melee 117 | . . . . . 1 . 39 17 22 6 6 26 Ram . | . . . . . . . . . . . . . Kick . | . . . . . . . . . . . . . Crush 3 | . . 2 . 1 . . . . . . . . Escape Stasis 28 | . . . . . . 9 . 18 . . . 1 Rewire . | . . . . . . . . . . . . . Trap 8 | . . . . . . . . . . . 8 . Miscellaneous . | . . . . . . . . . . . . . Route ------- -11/Scrapyard -10/Materials (discovered 5 exits: [*Mat x3] / [*Min x2]) -10/Mines (discovered 3 exits: [*Mat x2] / *Exi) -10/Exiles -9/Mines (discovered 2 exits: *Mat x2) -8/Materials (discovered 3 exits: *Fac x2 / Gar) -8/Garrison (discovered 3 exits: *Fac x3) -7/Factory (discovered 4 exits: *Fac x4) -6/Factory (discovered 3 exits: *Fac x2 / *Low) -6/Lower Caves -6/Lower Caves (discovered 2 exits: *Fac / *Dat) -6/Data Miner -5/Proximity Caves History --------- Turn | Location | Event 14 | -11/Scrapyard | Discovered new exit (range 16) 77 | -11/Scrapyard | Entered Materials 316 | -10/Materials | Build established: Mutant 642 | -10/Materials | Discovered new exit (range 4) 814 | -10/Materials | Discovered new exit (range 15) 925 | -10/Materials | Core integrity fell below 50% 999 | -10/Materials | Discovered new exit (range 9) 1280 | -10/Materials | Repaired Hcp. Storage Unit 1345 | -10/Materials | Repaired Lgt. Treads 1422 | -10/Materials | Discovered new exit (range 15) 1557 | -10/Materials | Discovered new exit (range 16) 1614 | -10/Materials | Entered Mines 1654 | -10/Mines | Learned location of 1 exit from Materials 1786 | -10/Mines | Assisted by bots powering up and referring to "LRC-V3" 2159 | -10/Mines | Discovered new exit (range 8) 2510 | -10/Mines | A weapon hastily lodged in a ceiling crevice suddenly fell to the ground 2539 | -10/Mines | Discovered new exit (range 8) 2740 | -10/Mines | Deemed a non-threat by the Exiles lab entrance 2740 | -10/Mines | Discovered new exit (range 5) 2749 | -10/Mines | Entered Exiles 2749 | -10/Exiles | Accompanied by 2 allies 2800 | -10/Exiles | Met 8R-AWN 2830 | -10/Exiles | Met EX-HEX 2908 | -10/Exiles | Learned location of Zion (-7) 2936 | -10/Exiles | Met EX-BIN 2962 | -10/Exiles | Aligned with FarCom system 2963 | -10/Exiles | Given EX-Vault access code 3005 | -10/Exiles | Opened EX-Vault 3046 | -10/Exiles | Warned to stay clear of 0b10 Research branches 3098 | -10/Exiles | Met EX-DEC 3169 | -10/Exiles | Discovered new exit (range 10) 3309 | -10/Exiles | Attacked by the Exiles 3347 | -10/Exiles | Entered Mines 3347 | -9/Mines | Accompanied by 2 allies 3360 | -9/Mines | Met a Derelict bent on vengeance 3432 | -9/Mines | Identified exit to Materials 3470 | -9/Mines | Discovered exit to Materials (range 10) 3500 | -9/Mines | Met a Derelict who couldn't figure out how to use a Trap Extractor 3915 | -9/Mines | Met a Derelict testing a Signal Generator 4335 | -9/Mines | Entered Materials 4335 | -8/Materials | Accompanied by 4 allies 4335 | -8/Materials | Evolved 4 slots: Propulsion x1, Utility x3 4336 | -8/Materials | Identified exit to Factory 4340 | -8/Materials | Led the pair of lost Derelicts to an unsafe place 4636 | -8/Materials | Build established: Hauler-Mutant 4675 | -8/Materials | Repaired Lgt. Treads 4732 | -8/Materials | Discovered exit to Factory (range 15) 5049 | -8/Materials | Garrison activated, responded to threat 5114 | -8/Materials | Destroyed 7 combat bots 5200 | -8/Materials | Identified exit to Garrison 5332 | -8/Materials | Entered Garrison 5482 | -8/Garrison | Triggered checkpoint 5546 | -8/Garrison | Discovered exit to Factory (range 14) 5652 | -8/Garrison | Triggered checkpoint 5755 | -8/Garrison | Discovered exit to Factory (range 12) 5934 | -8/Garrison | Discovered exit to Factory (range 8) 5961 | -8/Garrison | Installed Relay Interface Framework 5994 | -8/Garrison | Triggered checkpoint 6035 | -8/Garrison | Garrison Relay disabled 6226 | -8/Garrison | Triggered checkpoint 6259 | -8/Garrison | Garrison Relay disabled 6414 | -8/Garrison | Triggered checkpoint 6450 | -8/Garrison | Garrison Relay disabled 6556 | -8/Garrison | Entered Factory 6556 | -7/Factory | Accompanied by 3 allies 6556 | -7/Factory | Evolved 2 slots: Propulsion x2 6858 | -7/Factory | Fabricated Lgt. Fission Core (x2) 6934 | -7/Factory | Repaired Broken Imp. VTOL Module 6956 | -7/Factory | First assault squad dispatched 7282 | -7/Factory | Identified exit to Factory 7438 | -7/Factory | Fabricated Lrn. Sensor Array (x1) 7483 | -7/Factory | Entered another Factory area 7483 | -6/Factory | Evolved 2 slots: Power x1, Utility x1 7561 | -6/Factory | Build established: Sprinter 7614 | -6/Factory | Discovered new exit (range 13) 7640 | -6/Factory | Identified exit to Factory 7828 | -6/Factory | Fabricated Adv. System Shield? 7976 | -6/Factory | Repaired Falx 7981 | -6/Factory | Discovered new exit (range 6) 7982 | -6/Factory | Identified exit to Lower Caves 8018 | -6/Factory | Discovered exit to Factory (range 6) 8148 | -6/Factory | Entered Lower Caves 8148 | -6/Lower Caves | Accompanied by 1 ally 8336 | -6/Lower Caves | Build established: Hacker-Sprinter 8366 | -6/Lower Caves | Attracted the attention of an 0b10 checkpoint 8744 | -6/Lower Caves | Discovered new exit (range 8) 8752 | -6/Lower Caves | Identified exit to Lower Caves 8857 | -6/Lower Caves | Build established: Hacker-Mutant 8858 | -6/Lower Caves | Entered another Lower Caves area 8858 | -6/Lower Caves | Accompanied by 1 ally 8871 | -6/Lower Caves | Discovered exit to Factory (range 12) 9197 | -6/Lower Caves | Learned 4 Factory zone layouts 9275 | -6/Lower Caves | A Commander dispatched an escort 9292 | -6/Lower Caves | Learned location of Armory (-3) 9292 | -6/Lower Caves | Learned location of 1 exit from Factory 9292 | -6/Lower Caves | Learned Research trap positions 9292 | -6/Lower Caves | Learned Armory stockpile data 9292 | -6/Lower Caves | Learned Factory security intel 9463 | -6/Lower Caves | Discovered new exit (range 4) 9469 | -6/Lower Caves | Identified exit to Data Miner 9475 | -6/Lower Caves | Entered Data Miner 9475 | -6/Data Miner | Accompanied by 3 allies 9475 | -6/Data Miner | Discovered new exit (range 6) 9476 | -6/Data Miner | Commander's escort returned to base 9476 | -6/Data Miner | Commander's escort returned to base 9504 | -6/Data Miner | Met Data Miner 9524 | -6/Data Miner | Learned location of Section 7 (-2) 9524 | -6/Data Miner | Acquired the access code to Warlord's prototype stash 9548 | -6/Data Miner | Received God Mode back door access code from Data Miner 9696 | -6/Data Miner | Data Conduit disabled 9783 | -6/Data Miner | Identified exit to Proximity Caves 9784 | -6/Data Miner | Entered Proximity Caves 9786 | -5/Proximity Caves | Attracted the attention of an 0b10 outpost 9813 | -5/Proximity Caves | Destroyed 9 combat bots 9839 | -5/Proximity Caves | Lost 6 parts (1p4n1u) 9876 | -5/Proximity Caves | Learned Factory garrison access intel 9953 | -5/Proximity Caves | Core integrity fell below 50% 10003 | -5/Proximity Caves | Lost 6 parts (1p2n2u1w) 10011 | -5/Proximity Caves | Attracted the attention of an 0b10 checkpoint 10014 | -5/Proximity Caves | Core integrity fell below 20% 10064 | -5/Proximity Caves | Crushed by falling debris 10134 | -5/Proximity Caves | Destroyed by G-67 Veteran with Plasma Rifle Last Messages --------------- 10041_ Found Imp. Kinecellerator. 10041_ Found 0b10 Decoder Chip [Skirmisher]. 10041_ Found 32 Matter. 10042_ Acquired 32 matter. 10042_ Acquired 0b10 Decoder Chip [Skirmisher]. 10043_ Slug penetrates Wall. 10045_ Penetrated by Slug. 10064_ The unstable cave ceiling collapses. 10064_ Crushed by falling debris. 10064_ Imp. Signal Interpreter destroyed. 10064_ System corrupted by crushing effect (+2). 10068_ System corrupted: Energy discharge (-34). 10071_ The unstable cave ceiling collapses. 10082_ Acquired 26 matter. 10086_ Acquired Coil Gun. 10099_ >FRUGFCMZ AMBS UU4XL|QKVU13WAGE>NGN2JA 10113_ Adv. Terrain Scanner destroyed. 10124_ Drone sends a signal. 10132_ The unstable cave ceiling collapses. 10132_ G-50 Soldier crushed by falling debris. Map ----- +----------------------------------------------------+ | # # # #####?# ## #???????????? | | # # #?# ## #???????????? | | ## ## ![ ### ##### ###???????????? | | # #### ## ##??# ##?????????????? | | # ###?# #??####??????????????? | | ## ### ####?# ?????????????? | | ### #### ### ## ##???????????????????? | | ??# ##?#### ### ### #####?#?##???????????????? | | ??## #???#?## #?########???#?#???? ????????????? | | ?#?###????#?## ###?#??##??###????? ????????????? | | #??#?#?####### ###?#???#?#?????? ? ?????????????? | | ?#?###?# #?# ###?????#????#?????????????????? | | #???##?# ## ###??????###?????? ????????????? | | ?? ##???# #"####?##??#???# ?? ????????????? | | ?#????## ### ##??#?#??#?##??? ????????????? | | ?#????#?## #?## ##????????## ? ?????????????? | | ??????## ?## ##?## ########???? ??????????????? | | # ???#??? ## #??### ##???????????????????? | | #?? ?#?????# #?##g ##????#?????????????? | | ? ? ? ? #??# #????#??????????????? | | ??? ? #?## #?#?????????????????? | | ?# ?## ##?#????????????????? | | ??#### ?## l #?##???????????????? | | ????## #??## ##?????????????????? | | ???? ## #???## gb#?????????????????? | | ??? ### ?# ##???#@ ## #???????????????? | | ?????#### #?# ???# #? "????????????? | | ?#??????#####? ? ? " ??????????? | | ?? ???????#??? ## ???????????? | | ?????????? ??? ## ???????????????? | | ????????? ??? ### ?????????????? | | ??????#????? ? ??###% ???????????? | | ??????????????# ##?????## ## ??????????? | | ?????????? ????????#?????? ##?? ???????????? | | ???????????#??????????????# #???????????????? | | ???????????????????????????# #####???????????????? | | ????????????????????????????##???????????????????? | | ?????????????????????????????????????????????????? | | ?????????????????????????????????????????????????? | | ?????????????????????????????????????????????????? | | ?????????????????????????????????????????????????? | | ?????????????????????????????????????????????????? | | ?????????????????????????????????????????????????? | | ?????????????????????????????????????????????????? | | ?????????????????????????????????????????????????? | | ?????????????????????????????????????????????????? | | ?????????????????????????????????????????????????? | | ?????????????????????????????????????????????????? | | ?????????????????????????????????????????????????? | | ?????????????????????????????????????????????????? | +----------------------------------------------------+ Best States ------------- Heat Dissipation 45 Energy Generation 34 Energy Capacity 385 Matter Stores 300 Matter Capacity 300 Sight Range 16 Robot Scan Range 20 Terrain Scan Range 20 Terrain Scan Density 210 Armor Coverage 450 Resistance: TH 15 Propulsion Shielding 66 Evasion (%) 65 Melee Accuracy 6 Target Analysis 5 Recoil Reduction 3 Offensive Hacking 22 Defensive Hacking 14 Relay Coupler Types 42 Relay Coupler Value 2 Item Schematics ----------------- Hcp. Storage Unit | -10/Materials | Hacked Lrg. Storage Unit | -10/Materials | Hacked Lgt. Fission Core | -8/Materials | Scanalyzed Cesium-ion Thruster | -8/Materials | Scanalyzed Lrn. Sensor Array | -7/Factory | Hacked Adv. System Shield | -6/Factory | Hacked Combat Drone Bay | -6/Data Miner | Free Exp. Terrain Scanner | -6/Data Miner | Free Exp. Targeting Computer | -6/Data Miner | Free Exp. ECM Suite | -6/Data Miner | Free Lgt. Regenerative Plating | -6/Data Miner | Free Robot Schematics ------------------ M-13 Machinist | -10/Materials | Hacked S-27 Virus | -6/Data Miner | Free L-41 Fighter | -6/Data Miner | Free X-72 Disruptor | -6/Data Miner | Free G-50 Soldier | -6/Data Miner | Free H-66 Slayer | -6/Data Miner | Free P-70 Sage | -6/Data Miner | Free I-36 Angel | -6/Data Miner | Free I-47 Archangel | -6/Data Miner | Free Fabricated ------------ Lgt. Fission Core | x2 | -7/Factory Lrn. Sensor Array | x1 | -7/Factory Adv. System Shield | x1 | -6/Factory Alien Tech Used ----------------- None Achievements -------------- None Challenges ------------ None Game ------ Seed ZioniteGammaLog Manual? 0 Play Time 01:27:38 Cumulative 632.6 hours Start 2021.09.26 @ 15:37:35 End 2021.09.26 @ 17:32:30 Sessions 3 Manual Loads 0 Difficulty Rogue Special Mode None Game No. 374 Rogue 374 Adventurer 0 Explorer 0 Win Type - Total 8 Types 4/1/1/1/1/0/0/0/0 Lore% 89 Gallery% 91 Achievement% 73 Wizard Run 0 Options --------- ASCII 0 Keyboard 0 Movement Mouse Keybinds 1 Fullscreen 2 Font 24/Smallcaps Map View 76x50 Tactical HUD 1 Map Filters NONE Filters NONE Steam 1 RUN: 39765855-cdf0-4892-9706-073adf6f9ddf